bitfinex-derivatives/quotes_ETHF0:USTF0_20241017
["timestamp","ask_amount","ask_price","bid_price","bid_amount"]
[1729185979138,0.38387,2605.5,2605.4,0.38387]
[1729185979331,6.8978,2605.6,2604.9,4.16765]
[1729185979538,0.38386,2605.5,2605.4,0.38387]
[1729185979740,8.4878,2605.6,2604.9,4.16765]
[1729185979943,0.38388,2605.4,2605.3,0.38387]
[1729185980647,0.38389,2605.3,2605.2,0.80229]
[1729185981543,0.38389,2605.3,2605.2,0.4184]
[1729185982248,0.38389,2605.3,2605.2,0.8023]
[1729185982437,4.07389,2605.4,2605.3,0.38389]
[1729185982948,0.38388,2605.4,2605.3,0.38387]
[1729185985243,0.38386,2605.6,2605.5,0.38385]
[1729185986538,9.88901,2605.9,2605.4,0.4267]
[1729185986539,0.38386,2605.5,2605.4,0.4267]
[1729185986745,0.38386,2605.5,2605.4,0.81057]
[1729185987550,0.38385,2605.6,2605.5,0.38384]
[1729185987843,3.2078,2605.6,2605.4,0.4267]
[1729185988041,3.59164,2605.6,2605.5,0.38386]
[1729185988239,3.2078,2605.6,2605.5,0.38386]
[1729185988646,3.59164,2605.6,2605.5,0.38386]
[1729185988840,0.38386,2605.5,2605.4,0.4267]
[1729185989046,0.38386,2605.5,2605.4,0.81057]
[1729185991846,0.38386,2605.5,2605.4,0.4267]
[1729185992043,6.8978,2605.6,2605.2,0.4184]
[1729185992238,0.38389,2605.4,2605.3,0.38387]
[1729185992445,0.95972,2605.3,2604.9,3.2078]
[1729185992640,0.38397,2604.7,2604.6,0.4427]
[1729185992840,0.38399,2604.6,2604.5,0.443]
[1729185993041,0.38399,2604.6,2604.5,0.827]
[1729185994044,4.07399,2604.7,2604.6,0.38399]
[1729185994244,0.38399,2604.7,2604.6,0.38399]
[1729185994746,3.59179,2604.7,2604.6,0.38399]
[1729185995045,3.59177,2604.7,2604.6,0.38399]
[1729185996348,0.95984,2605.0,2604.9,0.38393]
[1729185996349,3.59173,2605.0,2604.9,0.38393]
[1729185996650,1.90392,2605.1,2605.0,0.38393]
[1729185996839,0.38396,2604.9,2604.8,0.79574]
[1729185997045,0.38394,2605.0,2604.9,0.38393]
[1729185997553,0.38393,2605.1,2605.0,0.38393]
[1729185999744,3.2078,2605.4,2604.8,0.4118]
[1729185999940,3.2078,2605.4,2604.9,0.95986]
[1729186000144,0.3839,2605.3,2605.2,0.38389]
[1729186003550,3.2078,2605.8,2605.3,0.95972]
[1729186003748,3.2078,2605.8,2605.6,0.38383]
[1729186003749,0.38384,2605.7,2605.6,0.38383]
[1729186004049,3.2078,2605.8,2605.7,0.38383]
[1729186004050,3.59162,2605.8,2605.7,0.38383]
[1729186004261,3.2078,2605.8,2605.7,0.38383]
[1729186004446,3.841,2607.1,2605.7,0.38383]
[1729186004447,8.68701,2606.7,2606.3,0.38373]
[1729186004657,8.68701,2606.7,2606.4,0.38372]
[1729186004658,0.38372,2606.5,2606.4,0.38372]
[1729186004847,7.7278,2606.7,2606.0,3.2078]
[1729186005049,0.38374,2606.3,2606.2,0.38374]
[1729186005256,3.59149,2606.7,2606.6,0.38369]
[1729186005453,0.3837,2606.6,2606.5,0.3837]
[1729186005649,0.3837,2606.6,2606.1,1.42532]
[1729186005948,0.3837,2606.6,2606.5,0.38371]
[1729186006152,3.2078,2606.7,2606.1,0.4659]
[1729186006458,10.544,2607.8,2607.1,0.38361]
[1729186006459,0.3836,2607.3,2607.1,0.38361]
[1729186006655,4.3605668,2607.6,2606.6,6.8978]
[1729186006956,0.38363,2607.1,2606.9,0.38364]
[1729186007156,3.69,2607.4,2606.6,3.2078]
[1729186007351,0.38364,2607.0,2606.9,0.38365]
[1729186007854,3.2078,2607.3,2607.1,0.38349589]
[1729186008052,0.38359,2607.3,2607.2,0.3836]
[1729186008250,0.38358,2607.4,2607.3,0.38359]
[1729186008453,0.3836,2607.3,2607.2,0.3836]
[1729186008850,5.35330117,2607.7,2607.1,0.38349589]
[1729186009050,0.38358,2607.4,2607.3,0.38359]
[1729186009254,0.38361,2607.2,2607.1,0.76710589]
[1729186009658,0.3836,2607.3,2607.1,0.38349589]
[1729186009957,3.69,2607.6,2607.1,0.76710589]
[1729186010172,0.3836,2607.3,2607.2,0.38361]
[1729186010361,0.3836,2607.3,2607.1,0.38349589]
[1729186010557,0.3836,2607.3,2607.1,0.76710589]
[1729186010953,0.38361,2607.2,2607.1,0.38349589]
[1729186011363,9.836,2607.2,2606.1,1.50050225]
[1729186011656,1.40763,2607.5,2606.2,0.38375]
[1729186011657,0.38374,2606.3,2606.2,0.38375]
[1729186012160,0.38374,2606.4,2606.2,0.38374]
[1729186012359,0.38374,2606.3,2606.2,0.38374]
[1729186012555,3.69,2606.7,2606.2,0.38374]
[1729186012761,3.69,2606.7,2605.9,0.4374]
[1729186012957,0.38374,2606.3,2606.2,0.38374]
[1729186013162,0.38374,2606.3,2605.9,0.4374]
[1729186013163,40.8,2606.6,2605.9,0.4374]
[1729186013364,0.38372,2606.4,2606.2,0.38374]
[1729186013658,0.38374,2606.3,2606.2,0.38374]
[1729186014053,0.4578,2606.5,2605.9,0.4374]
[1729186014054,0.38373,2606.4,2606.3,0.38374]
[1729186014760,0.38374,2606.3,2606.2,0.38375]
[1729186015058,0.38373,2606.4,2605.9,0.4374]
[1729186015259,0.38373,2606.4,2606.3,0.38373]
[1729186015465,0.4578,2606.5,2606.4,0.38372]
[1729186015466,0.84152,2606.5,2606.4,0.38372]
[1729186016057,0.4535,2606.6,2606.5,0.38371]
[1729186016360,0.38368,2606.7,2606.6,0.38368]
[1729186016561,3.2078,2606.8,2606.1,3.2078]
[1729186016757,3.2078,2606.8,2606.1,3.59156]
[1729186016758,0.38375,2606.2,2606.1,3.59156]
[1729186017066,3.69,2606.7,2606.1,3.59156]
[1729186017067,4.578,2606.7,2606.1,3.2078]
[1729186017562,0.38375,2606.2,2606.1,3.2078]
[1729186017767,0.38375,2606.2,2606.1,3.59157]
[1729186018471,0.38375,2606.2,2606.1,3.59156]
[1729186018670,3.69,2606.4,2606.1,3.2078]
[1729186018962,2.47924,2606.6,2606.1,3.2078]
[1729186019167,1.52,2606.6,2606.1,3.2078]
[1729186019364,1.9037,2606.6,2606.5,0.38371]
[1729186019564,1.52,2606.6,2606.5,0.38371]
[1729186019758,0.888,2606.7,2606.2,0.4717]
[1729186020066,0.38369,2606.7,2606.6,0.38368]
[1729186020264,0.38372,2606.5,2606.3,0.38374]
[1729186020462,4.64921,2606.7,2606.2,0.4717]
[1729186020665,3.2078,2606.8,2606.1,3.59156]
[1729186020666,0.38375,2606.2,2606.1,3.59156]
[1729186020855,4.07375,2606.2,2606.1,3.2078]
[1729186021060,15.0258,2606.2,2605.7,3.2078]
[1729186021260,15.0258,2606.2,2605.9,0.38379]
[1729186021261,0.38379,2606.0,2605.9,0.38379]
[1729186021461,0.38379,2606.0,2605.7,3.2078]
[1729186021462,0.3838,2605.9,2605.8,0.3838]
[1729186021664,5.189,2606.2,2605.7,3.2078]
[1729186021969,5.57276,2606.2,2605.7,4.16735]
[1729186022166,1.499,2606.2,2606.1,0.38377]
[1729186022373,8.3968,2606.9,2606.1,6.0]
[1729186022666,8.3968,2606.9,2606.0,3.2078]
[1729186022667,8.3968,2606.9,2606.3,3.2078]
[1729186022857,0.3837,2606.6,2606.5,0.3837]
[1729186023057,8.3968,2606.9,2606.3,3.2078]
[1729186023263,0.38371,2606.6,2606.5,0.3837]
[1729186024061,0.38372,2606.5,2606.4,0.38371]
[1729186024365,0.95924,2606.6,2606.0,3.2078]
[1729186024670,0.38381,2605.8,2605.7,3.2078]
[1729186024867,0.38381,2605.8,2605.1,5.10576]
[1729186024868,3.69,2605.8,2605.1,5.10576]
[1729186025178,0.38386,2605.5,2605.1,0.95976]
[1729186025368,0.38386,2605.5,2605.4,0.38387]
[1729186025577,0.38388,2605.4,2605.3,0.38388]
[1729186025767,0.4645,2605.7,2605.0,0.4749]
[1729186025963,0.38388,2605.4,2605.3,0.38388]
[1729186026163,0.4645,2605.7,2605.0,0.4749]
[1729186026471,0.38387,2605.5,2605.4,0.38387]
[1729186026870,0.4645,2605.7,2605.0,3.6827]
[1729186027069,0.3839,2605.3,2605.2,0.38389]
[1729186027264,0.38389,2605.4,2605.3,0.38388]
[1729186028071,0.38389,2605.3,2605.2,0.38388]
[1729186028465,0.461,2605.4,2605.0,3.6827]
[1729186028771,0.84488,2605.4,2605.3,0.38389]
[1729186029272,0.461,2605.4,2605.3,0.38389]
[1729186029662,0.84487,2605.4,2605.3,0.38389]
[1729186030170,0.84487,2605.4,2605.0,3.6827]
[1729186030171,0.461,2605.4,2605.0,0.4749]
[1729186030369,0.38391,2605.2,2605.1,0.38391]
[1729186030567,4.07389,2605.3,2605.2,0.3839]
[1729186030867,0.84488,2605.4,2605.3,0.38389]
[1729186031262,3.69,2605.5,2604.9,0.95985]
[1729186031465,3.69,2605.5,2605.4,0.38387]
[1729186031466,4.07386,2605.5,2605.4,0.38387]
[1729186032467,0.38388,2605.4,2605.3,0.38387]
[1729186032667,3.69,2605.5,2604.9,0.95985]
[1729186032870,4.07386,2605.5,2605.4,0.38387]
[1729186033073,0.38388,2605.4,2605.3,0.38388]
[1729186033375,5.1723,2605.7,2605.0,3.2078]
[1729186033568,0.38386,2605.5,2605.4,0.38386]
[1729186034063,0.38385,2605.6,2605.5,0.38385]
[1729186034465,0.38386,2605.5,2605.2,0.4435]
[1729186034661,0.38388,2605.4,2605.3,0.38387]
[1729186034874,3.69,2605.5,2605.2,0.4435]
[1729186035173,4.07386,2605.5,2605.4,0.38387]
[1729186035773,3.69,2605.5,2605.4,0.38387]
[1729186035960,4.07386,2605.5,2605.4,0.38387]
[1729186036471,0.38388,2605.4,2605.3,0.38387]
[1729186036675,0.38388,2605.4,2605.3,0.38388]
[1729186037461,3.69,2605.5,2605.2,0.4435]
[1729186037666,0.38389,2605.3,2605.2,0.82739]
[1729186037871,0.38389,2605.3,2605.2,0.38389]
[1729186038177,0.38388,2605.4,2605.3,0.38387]
[1729186039071,3.69,2605.5,2605.0,4.62082]
[1729186039266,0.38388,2605.4,2605.3,0.38388]
[1729186040069,0.38388,2605.4,2605.0,1.41302]
[1729186040070,3.69,2605.5,2605.4,0.38387]
[1729186040267,3.2078,2605.8,2605.7,0.38383]
[1729186040268,3.59161,2605.8,2605.7,0.38383]
[1729186040478,0.38381,2605.8,2605.7,0.38383]
[1729186042177,4.1455,2605.9,2605.5,0.4745]
[1729186042370,4.03939,2606.1,2606.0,0.38378]
[1729186042575,4.03939,2606.1,2605.6,0.95961]
[1729186042576,0.38379,2606.0,2605.9,0.38379]
[1729186042873,3.6556,2606.1,2605.6,1.43211]
[1729186043079,3.6556,2606.1,2606.0,0.38378]
[1729186043278,4.03937,2606.1,2606.0,0.38378]
[1729186043679,3.6556,2606.1,2606.0,0.38378]
[1729186043879,3.2078,2606.1,2606.0,4.22138]
[1729186044176,3.59157,2606.1,2606.0,0.38378]
[1729186044576,3.2078,2606.1,2606.0,0.38378]
[1729186045075,4.07376,2606.2,2605.8,4.16733]
[1729186045281,3.69,2606.2,2606.1,0.38377]
[1729186045579,4.07375,2606.2,2606.1,0.38377]
[1729186046183,0.3838,2606.0,2605.9,0.38379]
[1729186046680,3.69,2606.2,2605.8,3.5916]
[1729186046681,0.3838,2605.9,2605.8,3.5916]
[1729186046979,4.5243,2605.9,2605.8,3.5916]
[1729186047782,4.5243,2605.9,2605.8,3.2078]
[1729186048080,4.5243,2605.9,2605.3,1.21106591]
[1729186048081,15.4781,2605.9,2605.3,0.76766591]
[1729186048284,0.38387,2605.4,2605.3,0.76766591]
[1729186049578,13.43007,2605.4,2605.3,0.76766591]
[1729186049774,54.23007,2605.4,2605.3,0.76766591]
[1729186050780,54.23007,2605.4,2604.6,0.38398]
[1729186050781,0.38398,2604.7,2604.6,0.38398]
[1729186050975,4.07398,2604.7,2604.6,0.38398]
[1729186051182,4.07398,2604.7,2604.4,3.6662]
[1729186051183,3.69,2604.7,2604.4,3.6662]
[1729186051377,0.384,2604.5,2604.4,3.6662]
[1729186051587,3.69,2604.5,2604.0,3.2078]
[1729186051887,3.69,2604.5,2603.7,1.96034163]
[1729186051888,4.6501,2604.3,2603.8,0.3841]
[1729186052087,3.69,2604.0,2603.8,0.3841]
[1729186052280,3.69,2604.0,2603.7,0.4425]
[1729186052281,4.07408,2604.0,2603.9,0.38409]
[1729186052482,4.07408,2604.0,2603.8,0.38411]
[1729186052483,4.07409,2604.0,2603.8,0.38411]
[1729186052784,0.38409,2603.9,2603.8,0.38411]
[1729186052980,3.69,2604.0,2603.4,3.6704]
[1729186053286,4.07411,2603.8,2603.7,0.38411]
[1729186053475,2.4891,2604.3,2603.4,3.6704]
[1729186053476,3.69,2604.0,2603.4,3.6704]
[1729186053683,4.07406,2604.2,2604.1,0.38406]
[1729186053986,3.69,2604.2,2604.1,0.38406]
[1729186054285,4.07406,2604.2,2603.8,0.4425]
[1729186054475,3.69,2604.2,2603.8,0.4425]
[1729186054682,4.07408,2604.0,2603.8,0.4425]
[1729186054886,3.69,2604.0,2603.7,3.2078]
[1729186055081,3.69,2604.0,2603.9,0.38409]
[1729186056284,3.69,2604.0,2603.4,3.6704]
[1729186056485,3.69,2604.0,2603.4,4.6308]
[1729186056681,4.07409,2604.0,2603.4,4.6308]
[1729186056892,3.69,2604.0,2603.4,3.6704]
[1729186057090,0.38411,2603.9,2603.7,0.38411]
[1729186057395,3.69,2604.0,2603.4,3.6704]
[1729186057396,0.38411,2603.8,2603.5,0.38415]
[1729186057589,0.38411,2603.8,2603.4,3.6704]
[1729186057590,0.4512,2603.9,2603.4,3.6704]
[1729186057894,0.38411,2603.8,2603.7,0.38412]
[1729186058289,0.4512,2603.9,2603.4,3.6704]
[1729186058290,0.38412,2603.7,2603.4,3.6704]
[1729186058491,0.38414,2603.6,2603.5,0.38414]
[1729186058692,0.38412,2603.7,2603.4,0.4626]
[1729186058993,3.69,2603.8,2603.4,0.4626]
[1729186059294,0.38415,2603.6,2603.4,0.38416]
[1729186059491,3.69,2603.8,2603.0,0.9245]
[1729186059695,0.38416,2603.5,2603.4,0.38416]
[1729186059889,0.38416,2603.5,2603.3,0.38417]
[1729186060090,3.69,2603.8,2603.1,3.2078]
[1729186060491,3.69,2603.8,2603.4,0.38416]
[1729186060801,3.69,2603.8,2603.1,3.2078]
[1729186061489,0.38415,2603.6,2603.4,0.38416]
[1729186061705,3.69,2603.8,2603.1,3.2078]
[1729186061888,0.38414,2603.6,2603.1,4.16832]
[1729186062084,0.38414,2603.6,2603.5,0.38414]
[1729186062389,4.07411,2603.8,2603.6,0.38412]
[1729186062590,0.38412,2603.7,2603.5,0.38414]
[1729186062800,0.38412,2603.7,2603.6,0.38414]
[1729186063015,0.4512,2603.9,2603.1,3.2078]
[1729186063311,0.38408,2604.0,2603.9,0.38408]
[1729186063503,3.2078,2604.1,2603.7,3.2078]
[1729186063504,3.2078,2604.1,2604.0,0.38408]
[1729186064110,3.6563,2604.4,2604.0,10.22408]
[1729186064300,1.604,2604.5,2604.4,0.38402]
[1729186064908,1.98801,2604.5,2604.4,0.38402]
[1729186065107,1.604,2604.5,2604.4,0.38402]
[1729186065316,1.988,2604.5,2604.4,0.38402]
[1729186065609,1.988,2604.5,2604.0,3.2078]
[1729186065610,1.604,2604.5,2604.0,3.2078]
[1729186065810,3.69,2604.3,2604.2,0.38405]
[1729186066601,4.07403,2604.3,2604.2,0.38405]
[1729186066815,3.69,2604.3,2604.2,0.38405]
[1729186068315,0.38401,2604.5,2604.4,0.38401]
[1729186068819,0.38403,2604.4,2604.3,0.38402]
[1729186069210,4.44332498,2605.0,2604.3,9.84]
[1729186069211,3.48347498,2605.0,2604.3,9.84]
[1729186069411,3.59169,2605.3,2605.2,0.3839]
[1729186069617,3.2078,2605.3,2605.2,0.3839]
[1729186069816,3.2078,2605.3,2604.7,0.95994]
[1729186070120,0.38391,2605.2,2605.1,0.3839]
[1729186070324,3.59169,2605.3,2605.2,0.3839]
[1729186070518,3.59169,2605.3,2604.8,0.95988]
[1729186070519,0.38391,2605.2,2605.1,0.3839]
[1729186070907,3.2078,2605.3,2605.2,0.3839]
[1729186071109,1.603,2605.6,2605.5,0.38386]
[1729186071110,3.69,2605.6,2605.5,0.38386]
[1729186071412,3.69,2605.6,2605.0,0.9598]
[1729186071413,4.06142,2605.8,2605.7,0.38383]
[1729186071606,3.6776,2605.8,2605.2,0.95973]
[1729186071910,3.6776,2605.8,2605.7,0.38383]
[1729186072316,0.85361,2605.8,2605.7,0.38383]
[1729186072617,0.4698,2605.8,2605.7,0.38383]
[1729186072825,3.69,2605.9,2605.8,0.38381]
[1729186073123,2.0446,2606.0,2605.9,0.3838]
[1729186073420,16.88854,2606.4,2606.0,0.38378]
[1729186073626,16.88854,2606.4,2605.6,0.95959]
[1729186073627,18.1078,2606.4,2605.6,1.42069]
[1729186073828,18.1078,2606.4,2606.0,0.38378]
[1729186073829,0.38376,2606.2,2606.0,0.38378]
[1729186074026,18.1078,2606.4,2606.0,0.38378]
[1729186074027,3.69,2606.1,2606.0,0.38378]
[1729186075426,3.69,2606.1,2605.5,3.2078]
[1729186075725,4.0738,2605.9,2605.8,0.38381]
[1729186075926,3.69,2605.9,2605.8,0.38381]
[1729186076127,4.0738,2605.9,2605.8,0.38381]
[1729186076320,4.0738,2605.9,2605.5,3.2078]
[1729186076321,3.69,2605.9,2605.5,3.2078]
[1729186076517,3.69,2605.9,2605.7,0.38381]
[1729186076721,0.38383,2605.7,2605.6,0.38383]
[1729186077026,0.38382,2605.8,2605.7,0.38382]
[1729186077224,3.69,2605.9,2605.5,3.2078]
[1729186077225,4.0738,2605.9,2605.5,3.2078]
[1729186077413,4.0738,2605.9,2605.7,0.38382]
[1729186077414,0.38381,2605.8,2605.7,0.38382]
[1729186077919,3.69,2605.9,2605.6,0.38384]
[1729186077920,0.38384,2605.7,2605.6,0.38384]
[1729186078322,16.7354,2605.7,2604.8,6.13907225]
[1729186078526,4.07389,2605.3,2605.2,0.3839]
[1729186078822,4.07389,2605.3,2604.7,0.4808]
[1729186078823,0.38392,2605.1,2605.0,0.38393]
[1729186079024,0.38391,2605.2,2605.1,0.38391]
[1729186079229,0.38392,2605.1,2604.7,0.4808]
[1729186079522,0.38393,2605.0,2604.8,3.59175]
[1729186079723,0.38394,2604.9,2604.8,3.59175]
[1729186079926,0.38394,2605.0,2604.9,0.38393]
[1729186080723,3.69,2605.3,2604.8,3.2078]
[1729186080924,0.38394,2605.0,2604.9,0.38393]
[1729186081121,3.69,2605.3,2604.8,3.2078]
[1729186081437,0.38392,2605.1,2605.0,0.38393]
[1729186081627,0.38394,2605.0,2604.9,0.38394]
[1729186081829,0.38393,2605.1,2605.0,0.38392]
[1729186082326,0.38389,2605.3,2605.2,0.3839]
[1729186082825,5.2987,2605.4,2604.8,4.16769]
[1729186083126,5.2987,2605.4,2605.3,0.38389]
[1729186083127,1.603,2605.4,2605.3,0.38389]
[1729186083421,3.69,2605.8,2605.7,0.38383]
[1729186083624,3.2078,2605.9,2605.8,0.38381]
[1729186083829,3.69,2606.1,2605.6,4.16741]
[1729186084023,0.488,2606.2,2605.6,4.16741]
[1729186084219,0.488,2606.2,2605.6,3.2078]
[1729186084420,0.87176,2606.2,2606.1,0.38377]
[1729186084828,0.87176,2606.2,2605.8,0.38381]
[1729186084829,0.87177,2606.2,2605.8,0.38381]
[1729186085122,3.69,2606.1,2605.6,3.2078]
[1729186085528,0.38381,2605.9,2605.8,0.38381]
[1729186085721,0.4748,2606.0,2605.6,3.2078]
[1729186086024,3.69,2605.8,2605.6,3.2078]
[1729186086225,0.38383,2605.7,2605.6,3.2078]
[1729186086624,0.38382,2605.8,2605.7,0.38383]
[1729186086927,0.4748,2606.0,2605.9,0.3838]
[1729186086928,0.85859,2606.0,2605.9,0.3838]
[1729186087127,0.4748,2606.0,2605.9,0.3838]
[1729186087521,0.85858,2606.0,2605.9,0.3838]
[1729186088023,0.4748,2606.0,2605.9,0.3838]
[1729186089825,3.69,2606.1,2605.6,3.2078]
[1729186090029,3.69,2606.1,2605.0,6.08285163]
[1729186090030,0.488,2606.2,2606.1,0.38377]
[1729186090533,3.2078,2606.4,2606.0,0.95946]
[1729186090728,3.2078,2606.4,2605.9,3.6531]
[1729186090924,3.59153,2606.4,2606.3,0.38374]
[1729186091331,3.2078,2606.4,2606.3,0.38374]
[1729186091527,0.4732,2606.5,2606.4,0.38372]
[1729186091727,0.83228,2606.7,2606.6,0.38369]
[1729186091728,0.4486,2606.7,2606.6,0.38369]
[1729186091932,2.00465,2606.9,2606.8,0.38366]
[1729186092128,1.621,2606.9,2606.8,0.38366]
[1729186092425,2.00465,2606.9,2606.8,0.38366]
[1729186093029,0.38365,2606.9,2606.8,0.38366]
[1729186093627,0.4585,2607.0,2606.7,0.38367]
[1729186093628,0.38366,2606.8,2606.7,0.38367]
[1729186093826,0.38369,2606.6,2606.5,3.2078]
[1729186094022,0.38372,2606.5,2606.4,0.38372]
[1729186094329,3.69,2606.6,2606.5,0.38371]
[1729186094830,3.2078,2606.9,2606.7,0.38368]
[1729186095031,0.4585,2607.0,2606.9,0.38365]
[1729186095230,0.4585,2607.0,2606.1,3.69]
[1729186095231,5.7656,2607.3,2606.8,3.2078]
[1729186095428,5.7656,2607.3,2607.2,0.38361]
[1729186095625,5.76559,2607.3,2607.2,0.38361]
[1729186095939,3.69,2607.3,2606.8,0.4632]
[1729186096127,0.38362,2607.2,2607.1,0.38362]
[1729186096328,4.0736,2607.3,2607.2,0.38361]
[1729186096531,4.0736,2607.3,2606.8,1.42235]
[1729186096532,0.38361,2607.2,2607.1,0.38361]
[1729186097834,0.38361,2607.2,2607.1,1.15074589]
[1729186098029,3.69,2607.3,2607.1,0.76713589]
[1729186098236,0.38361,2607.2,2607.1,1.15074589]
[1729186099135,0.38361,2607.2,2607.1,0.76713589]
[1729186101525,0.38361,2607.2,2607.1,1.15075589]
[1729186101927,3.69,2607.3,2607.1,0.76713589]
[1729186102133,3.69,2607.3,2607.2,0.38361]
[1729186102529,3.2078,2607.5,2607.1,0.76713589]
[1729186102724,3.2078,2607.5,2607.2,0.38361]
[1729186102928,0.38358,2607.4,2607.1,1.15074589]
[1729186103136,0.38361,2607.2,2607.1,0.76713589]
[1729186103945,0.38361,2607.2,2607.1,1.15075589]
[1729186105041,0.38361,2607.2,2607.1,1.91789178]
[1729186106633,0.38361,2607.2,2607.1,1.53427178]
[1729186106830,0.38361,2607.2,2607.1,1.91789178]
[1729186107938,0.38361,2607.2,2607.1,1.53427178]
[1729186108734,13.42741,2607.2,2607.1,1.53427178]
[1729186108942,4.21961,2607.2,2607.1,1.53427178]
[1729186109540,10.21961,2607.2,2607.1,1.53427178]
[1729186109945,13.20961,2607.2,2607.1,1.53427178]
[1729186110250,7.20961,2607.2,2607.1,1.53427178]
[1729186110446,13.20961,2607.2,2607.1,1.53427178]
[1729186111551,16.41741,2607.2,2607.1,0.63201056]
[1729186111941,18.73141,2607.2,2607.1,0.63201056]
[1729186113240,0.38361,2607.2,2607.1,0.63201056]
[1729186116642,4.07361,2607.2,2607.1,0.63201056]
[1729186116952,4.77226454,2607.2,2607.1,0.63201056]
[1729186117350,1.08226454,2607.2,2607.1,0.63201056]
[1729186117648,0.38361,2607.2,2607.1,0.63201056]
[1729186118047,4.07361,2607.2,2607.1,0.63201056]
[1729186118243,4.77226454,2607.2,2607.1,0.63201056]
[1729186118748,7.98006454,2607.2,2607.1,0.63201056]
[1729186119053,17.81606454,2607.2,2607.1,0.63201056]
[1729186119347,17.81606454,2607.2,2606.5,3.2078]
[1729186119348,17.43245454,2607.2,2606.5,3.2078]
[1729186119541,1.614,2607.4,2606.1,0.4712]
[1729186119542,4.64926,2606.6,2606.1,0.4712]
[1729186119748,0.38375,2606.3,2606.2,0.38375]
[1729186120049,0.38375,2606.3,2606.1,0.4712]
[1729186120050,0.38373,2606.4,2606.3,0.38373]
[1729186120458,0.38374,2606.3,2606.2,0.38374]
[1729186120753,0.38374,2606.3,2606.1,0.4712]
[1729186120754,0.38373,2606.4,2606.3,0.38373]
[1729186121254,0.69976568,2606.5,2606.4,0.38372]
[1729186121553,0.3837,2606.6,2606.5,0.3837]
[1729186121953,0.38372,2606.5,2606.4,0.38372]
[1729186123147,0.3837,2606.6,2606.5,0.3837]
[1729186126143,4.64917,2606.8,2606.2,1.43568]
[1729186126347,0.38372,2606.5,2606.4,0.38371]
[1729186127244,3.69,2606.8,2606.2,0.4763]
[1729186127439,0.3837,2606.6,2606.5,0.38369]
[1729186129253,0.38374,2606.4,2606.3,0.38373]
[1729186129449,0.38375,2606.2,2606.1,0.4712]
[1729186129954,0.38375,2606.2,2606.1,0.85497]
[1729186131855,2.12357057,2606.5,2606.2,0.38373]
[1729186131856,0.38375,2606.3,2606.2,0.38373]
[1729186132952,0.38375,2606.4,2606.3,0.38372]
[1729186135254,0.38375,2606.3,2606.2,0.38374]
[1729186135554,0.38375,2606.3,2606.1,0.4712]
[1729186135555,0.38375,2606.2,2606.1,0.85496]
[1729186139560,0.38374,2606.4,2606.3,0.38372]
[1729186140251,0.95921,2606.7,2606.1,1.43061]
[1729186140455,0.3837,2606.7,2606.6,0.38368]
[1729186141156,0.38371,2606.6,2606.5,0.3837]
[1729186141556,0.38371,2606.6,2606.3,0.4839]
[1729186141753,0.38372,2606.5,2606.4,0.38372]
[1729186143063,0.38371,2606.6,2606.5,0.38369]
[1729186144354,0.70171071,2606.7,2606.6,0.38369]
[1729186144665,0.38364,2607.0,2606.9,0.38365]
[1729186146966,0.70171071,2607.1,2606.7,2.44975163]
[1729186147159,0.70171071,2607.2,2606.8,1.95921163]
[1729186147360,0.38362,2607.2,2607.1,0.38362]
[1729186148466,7.79503,2607.2,2606.8,1.00005163]
[1729186148659,0.38368,2606.7,2606.5,4.20785163]
[1729186148862,3.456,2606.6,2606.2,1.00005163]
[1729186149062,0.38375,2606.2,2606.1,1.00005163]
[1729186149262,0.38375,2606.2,2606.0,1.38382163]
[1729186149263,0.38377,2606.1,2606.0,1.38382163]
[1729186149459,0.38377,2606.1,2606.0,0.38377]
[1729186149662,0.70216042,2606.1,2606.0,0.38378]
[1729186149873,0.38376,2606.2,2605.9,0.4642]
[1729186150069,0.38376,2606.2,2606.1,0.38377]
[1729186150473,0.70216042,2606.3,2605.9,0.4642]
[1729186150669,3.0,2606.1,2605.8,3.2078]
[1729186151174,0.3838,2606.0,2605.9,0.38379]
[1729186151568,1.08596042,2606.0,2605.9,0.38379]
[1729186151762,0.70216042,2606.0,2605.8,3.2078]
[1729186151962,0.38379,2606.0,2605.9,0.3838]
[1729186152167,3.38377,2606.1,2606.0,0.38378]
[1729186152971,3.0,2606.1,2606.0,0.38378]
[1729186153175,0.456,2606.6,2606.5,0.38371]
[1729186154074,2.2348,2607.0,2606.5,4.22051]
[1729186154370,0.38363,2607.1,2607.0,0.38362]
[1729186155071,6.6996,2607.2,2606.7,4.16701]
[1729186155266,7.08321,2607.2,2607.1,0.38362]
[1729186155973,6.6996,2607.2,2606.8,0.4918]
[1729186156169,7.08321,2607.2,2606.8,0.4918]
[1729186156371,7.08321,2607.2,2607.1,0.38362]
[1729186156673,3.87541,2607.2,2607.1,0.38362]
[1729186156872,3.4918,2607.2,2607.1,0.38362]
[1729186157069,3.87541,2607.2,2607.1,0.38362]
[1729186157567,0.38364,2607.0,2606.9,0.38364]
[1729186157772,0.38363,2607.1,2607.0,0.38362]
[1729186158468,3.38359,2607.4,2607.3,0.38359]
[1729186158671,4.08623355,2607.4,2607.3,0.38359]
[1729186158969,4.08623355,2607.4,2607.1,0.3836]
[1729186158970,0.38361,2607.2,2607.1,0.3836]
[1729186159477,0.38361,2607.2,2607.1,1.15073589]
[1729186160279,1.55263126,2607.3,2607.2,0.38361]